Workbook

Sheet Title sheet
C4: XXXXXXXXXXX
D7: Interventions to Improve Workplace Health in Older Workers - Cost Calculator
D12: About the model:
D14: Black text | F14: Indicates input cells. These can be changed as appropriate to your requirements.
D16: Red text | F16: Indicates a formula cell. These are dependent upon other cells, and should not be changed. There are no password or protected sheets.
D18: Comments | F18: A red mark in the corner of a cell indicates a comment. To view the comment, hover the pointer over the cell.
D21: This cost calculator is intended for use by decision makers to determine if a work place health intervention for older workers is cost-effective in their organisation. The values included in the 'base case' are there as an example of the type of input that could be used and are included as a starting point. Each input in the base case has a comment in the cell to indicate the input source. The base case data is intended as a guide only and this information will differ by organisation. It is intended that the model user will input data specific to their own organisation (or the organisation where the intervention will be implemented).
D26: To use the model: 1. Click the 'Base Case' tab and enter your own data into the input cells (green cells); 2. Select which categories you would like to include using the tick boxes in the 'Base Case' sheet; 3. Click the 'Results' tab to view the results of the cost calculator; 4. If you are unsure of any of the inputs you have entered click the 'Sensitivity Analysis' tab and/or the 'Slider Chart' tab to see what effect varying each input would have on the results.

Sheet Inputs
C4: XXXXXXXXXXX
AM9: LIVE
D11: Number of employees | E11: 30 | AN11: Spin button | AR11: Cost of int | AS11: ='Base case'!G18 -> 6658.5795
AL12: No of employees | AM12: =IF('Base case'!$E$125=1,Inputs!AN12,Inputs!E11) -> 30 | AN12: 30 | AR12: 0 | AS12: 12658.5795
E13: Baseline | AR13: 50 | AS13: 11158.5795
D14: Cost of intervention per person | E14: 200 | AL14: Cost of intervention per person | AM14: =IF('Base case'!$E$125=1,Inputs!AN14,Inputs!E14) -> 200 | AN14: 200 | AR14: 100 | AS14: 9658.5795
AR15: 150 | AS15: 8158.5795
D16: Absenteeism | E16: Baseline | AO16: Spin button default | AR16: 200 | AS16: 6658.5795
D17: Number of days lost per person | E17: 7.084 | AL17: Number of days lost per person | AM17: =IF('Base case'!$E$125=1,Inputs!AN17,Inputs!E17) -> 7.084 | AN17: 7.084 | AR17: 250 | AS17: 5158.5795
D18: Cost of absenteeism per day | E18: 120 | AL18: Cost of absenteeism per day | AM18: =IF('Base case'!$E$125=1,Inputs!AN18,Inputs!E18) -> 120 | AN18: 120 | AR18: 300 | AS18: 3658.5795
D19: Reduction in absenteeism | E19: 0.1 | AL19: Reduction in absenteeism | AM19: =IF('Base case'!$E$125=1,(Inputs!AN19/100),Inputs!E19) -> 0.1 | AN19: 10 | AO19: =AM19*100 -> 10 | AR19: 350 | AS19: 2158.5795
AR20: 400 | AS20: 658.5795
D21: Productivity | E21: Baseline | AR21: 450 | AS21: -841.4205
D22: Percentage of staff affected | E22: 1 | AL22: Percentage of staff affected | AM22: =IF('Base case'!$E$125=1,(Inputs!AN22/100),Inputs!E22) -> 1 | AN22: 100 | AO22: =AM22*100 -> 100 | AR22: 500 | AS22: -2341.4205
D23: Value of employee | E23: =28230*1.4 -> 39522 | AL23: Value of employee | AM23: =IF('Base case'!$E$125=1,(Inputs!AN23*100),Inputs!E23) -> 39522 | AN23: 395.22 | AO23: =AM23/100 -> 395.22 | AR23: =AM14 -> 200 | AS23: =AS11 -> 6658.5795
D24: Increase in productivity | E24: 0.001 | AL24: Increase in productivity | AM24: =IF('Base case'!$E$125=1,(Inputs!AN24/1000),Inputs!E24) -> 0.001 | AN24: 0.1 | AO24: =AM24*100 -> 0.1
AR25: Absenteeism
D26: Staff turnover | E26: Baseline | AR26: No. of days | AS26: ='Base case'!G18 -> 6658.5795 | AU26: Cost per day | AV26: ='Base case'!G18 -> 6658.5795 | AX26: Reduction | AY26: ='Base case'!G18 -> 6658.5795
D27: Annual rate of staff turnover | E27: 0.119 | AL27: Annual rate of staff turnover | AM27: =IF('Base case'!$E$125=1,(Inputs!AN27/100),Inputs!E27) -> 0.119 | AN27: 11.9 | AO27: =AM27*100 -> 11.9 | AR27: 0 | AS27: 4108.3395 | AU27: 0 | AV27: 4108.3395 | AX27: 0 | AY27: 4108.3395
D28: Cost per case of staff turnover | E28: 14282 | AL28: Reduction in staff turnover | AM28: =IF('Base case'!$E$125=1,(Inputs!AN28/100),Inputs!E29) -> 0.175 | AN28: 17.5 | AO28: =AM28*100 -> 17.5 | AR28: 2 | AS28: 4828.3395 | AU28: 50 | AV28: 5170.9395 | AX28: 0.05 | AY28: 5383.4595
D29: Reduction in staff turnover | E29: 0.175 | AL29: Cost per case of staff turnover | AM29: =IF('Base case'!$E$125=1,Inputs!AN29,Inputs!E28) -> 14282 | AN29: 14282 | AR29: 4 | AS29: 5548.3395 | AU29: 100 | AV29: 6233.5395 | AX29: 0.1 | AY29: 6658.5795
AR30: 6 | AS30: 6268.3395 | AU30: 150 | AV30: 7296.1395 | AX30: 0.15 | AY30: 7933.6995
D31: Health care costs | E31: Baseline | AR31: 8 | AS31: 6988.3395 | AU31: 200 | AV31: 8358.7395 | AX31: 0.2 | AY31: 9208.8195
D32: Percentage of staff affected | E32: 0.22 | AL32: Percentage of staff affected | AM32: =IF('Base case'!$E$125=1,(Inputs!AN32/100),Inputs!E32) -> 0.22 | AN32: 22 | AO32: =AM32*100 -> 22 | AR32: 10 | AS32: 7708.3395 | AU32: 250 | AV32: 9421.3395 | AX32: 0.25 | AY32: 10483.9395
D33: Cost per person affected | E33: 840.97 | AL33: Reduction in healthcare use | AM33: =IF('Base case'!$E$125=1,(Inputs!AN33/100),Inputs!E34) -> 0.5 | AN33: 50 | AO33: =AM33*100 -> 50 | AR33: 12 | AS33: 8428.3395 | AU33: 300 | AV33: 10483.9395 | AX33: 0.3 | AY33: 11759.0595
D34: Reduction in healthcare use | E34: 0.5 | AL34: Cost per person affected | AM34: =IF('Base case'!$E$125=1,Inputs!AN34,Inputs!E33) -> 840.97 | AN34: 840.97 | AR34: 14 | AS34: 9148.3395 | AU34: 350 | AV34: 11546.5395 | AX34: 0.35 | AY34: 13034.1795
AR35: 16 | AS35: 9868.3395 | AU35: 400 | AV35: 12609.1395 | AX35: 0.4 | AY35: 14309.2995
D36: Other societal costs | E36: Baseline | AR36: 18 | AS36: 10588.3395 | AU36: 450 | AV36: 13671.7395 | AX36: 0.45 | AY36: 15584.4195
D37: Percentage of staff affected | E37: 0.05 | AL37: Percentage of staff affected | AM37: =IF('Base case'!$E$125=1,(Inputs!AN37/100),Inputs!E37) -> 0.05 | AN37: 5 | AO37: =AM37*100 -> 5 | AR37: 20 | AS37: 11308.3395 | AU37: 500 | AV37: 14734.3395 | AX37: 0.5 | AY37: 16859.5395
D38: Cost per person affected | E38: 5000 | AL38: Reduction in societal costs | AM38: =IF('Base case'!$E$125=1,(Inputs!AN38/100),Inputs!E39) -> 0.1 | AN38: 10 | AO38: =AM38*100 -> 10 | AR38: =AM17 -> 7.084 | AS38: =AS26 -> 6658.5795 | AU38: =AM18 -> 120 | AV38: =AV26 -> 6658.5795 | AX38: =AM19 -> 0.1 | AY38: =AY26 -> 6658.5795
D39: Reduction in societal costs | E39: 0.1 | AL39: Cost per person affected | AM39: =IF('Base case'!$E$125=1,Inputs!AN39,Inputs!E38) -> 5000 | AN39: 5000
AR40: Productivity
AR41: % affected | AS41: ='Base case'!G18 -> 6658.5795 | AU41: Value of emp | AV41: ='Base case'!G18 -> 6658.5795 | AX41: Increase in prod | AY41: ='Base case'!G18 -> 6658.5795
AR42: 0 | AS42: 5472.9195 | AU42: 0 | AV42: 5472.9195 | AX42: 0 | AY42: 5472.9195
AR43: 0.1 | AS43: 5591.4855 | AU43: 5000 | AV43: 5622.9195 | AX43: 0.001 | AY43: 6658.5795
AR44: 0.2 | AS44: 5710.0515 | AU44: 10000 | AV44: 5772.9195 | AX44: 0.002 | AY44: 7844.2395
AR45: 0.3 | AS45: 5828.6175 | AU45: 15000 | AV45: 5922.9195 | AX45: 0.003 | AY45: 9029.8995
AR46: 0.4 | AS46: 5947.1835 | AU46: 20000 | AV46: 6072.9195 | AX46: 0.004 | AY46: 10215.5595
AR47: 0.5 | AS47: 6065.7495 | AU47: 25000 | AV47: 6222.9195 | AX47: 0.005 | AY47: 11401.2195
AR48: 0.6 | AS48: 6184.3155 | AU48: 30000 | AV48: 6372.9195 | AX48: 0.006 | AY48: 12586.8795
AR49: 0.7 | AS49: 6302.8815 | AU49: 35000 | AV49: 6522.9195 | AX49: 0.007 | AY49: 13772.5395
AR50: 0.8 | AS50: 6421.4475 | AU50: 40000 | AV50: 6672.9195 | AX50: 0.008 | AY50: 14958.1995
AR51: 0.9 | AS51: 6540.0135 | AU51: 45000 | AV51: 6822.9195 | AX51: 0.009 | AY51: 16143.8595
AR52: 1 | AS52: 6658.5795 | AU52: 50000 | AV52: 6972.9195 | AX52: 0.01 | AY52: 17329.5195
AR53: =AM22 -> 1 | AS53: =AS41 -> 6658.5795 | AU53: =AM23 -> 39522 | AV53: =AV41 -> 6658.5795 | AX53: =AM24 -> 0.001 | AY53: =AY41 -> 6658.5795
AR55: Staff turnover
AR56: Anunal rate of turnover | AS56: ='Base case'!G18 -> 6658.5795 | AU56: Cost per case | AV56: ='Base case'!G18 -> 6658.5795 | AX56: Reduction in turnover | AY56: ='Base case'!G18 -> 6658.5795
AR57: 0 | AS57: -2264.1 | AU57: 0 | AV57: -2264.1 | AX57: 0 | AY57: -2264.1
AR58: 0.05 | AS58: 1484.925 | AU58: 5000 | AV58: 859.65 | AX58: 0.05 | AY58: 285.237
AR59: 0.1 | AS59: 5233.95 | AU59: 10000 | AV59: 3983.4 | AX59: 0.1 | AY59: 2834.574
AR60: 0.15 | AS60: 8982.975 | AU60: 15000 | AV60: 7107.15 | AX60: 0.15 | AY60: 5383.911
AR61: 0.2 | AS61: 12732 | AU61: 20000 | AV61: 10230.9 | AX61: 0.2 | AY61: 7933.248
AR62: 0.25 | AS62: 16481.025 | AU62: 25000 | AV62: 13354.65 | AX62: 0.25 | AY62: 10482.585
AR63: 0.3 | AS63: 20230.05 | AU63: 30000 | AV63: 16478.4 | AX63: 0.3 | AY63: 13031.922
AR64: 0.35 | AS64: 23979.075 | AU64: 35000 | AV64: 19602.15 | AX64: 0.35 | AY64: 15581.259
AR65: 0.4 | AS65: 27728.1 | AU65: 40000 | AV65: 22725.9 | AX65: 0.4 | AY65: 18130.596
AR66: 0.45 | AS66: 31477.125 | AU66: 45000 | AV66: 25849.65 | AX66: 0.45 | AY66: 20679.933
AR67: 0.5 | AS67: 35226.15 | AU67: 50000 | AV67: 28973.4 | AX67: 0.5 | AY67: 23229.27
AR68: =AM27 -> 0.119 | AS68: =AS56 -> 6658.5795 | AU68: =AM29 -> 14282 | AV68: =AV56 -> 6658.5795 | AX68: =AM28 -> 0.175 | AY68: =AY56 -> 6658.5795
AR70: Healthcare costs
AR71: % affected | AS71: ='Base case'!G18 -> 6658.5795 | AU71: Cost per person | AV71: ='Base case'!G18 -> 6658.5795 | AX71: Reduction in healthcare use | AY71: ='Base case'!G18 -> 6658.5795
AR72: 0 | AS72: 6658.5795 | AU72: 0 | AV72: 6658.5795 | AX72: 0 | AY72: 6658.5795
AR73: 0.05 | AS73: 6658.5795 | AU73: 200 | AV73: 6658.5795 | AX73: 0.1 | AY73: 6658.5795
AR74: 0.1 | AS74: 6658.5795 | AU74: 400 | AV74: 6658.5795 | AX74: 0.2 | AY74: 6658.5795
AR75: 0.15 | AS75: 6658.5795 | AU75: 600 | AV75: 6658.5795 | AX75: 0.3 | AY75: 6658.5795
AR76: 0.2 | AS76: 6658.5795 | AU76: 800 | AV76: 6658.5795 | AX76: 0.4 | AY76: 6658.5795
AR77: 0.25 | AS77: 6658.5795 | AU77: 1000 | AV77: 6658.5795 | AX77: 0.5 | AY77: 6658.5795
AR78: 0.3 | AS78: 6658.5795 | AU78: 1200 | AV78: 6658.5795 | AX78: 0.6 | AY78: 6658.5795
AR79: 0.35 | AS79: 6658.5795 | AU79: 1400 | AV79: 6658.5795 | AX79: 0.7 | AY79: 6658.5795
AR80: 0.4 | AS80: 6658.5795 | AU80: 1600 | AV80: 6658.5795 | AX80: 0.8 | AY80: 6658.5795
AR81: 0.45 | AS81: 6658.5795 | AU81: 1800 | AV81: 6658.5795 | AX81: 0.9 | AY81: 6658.5795
AR82: 0.5 | AS82: 6658.5795 | AU82: 2000 | AV82: 6658.5795 | AX82: 1 | AY82: 6658.5795
AR83: =AM32 -> 0.22 | AS83: =AS71 -> 6658.5795 | AU83: =AM34 -> 840.97 | AV83: =AV71 -> 6658.5795 | AX83: =AM33 -> 0.5 | AY83: =AY71 -> 6658.5795
AR85: Other societal costs
AR86: % affected | AS86: ='Base case'!G18 -> 6658.5795 | AU86: Cost per person | AV86: ='Base case'!G18 -> 6658.5795 | AX86: Reduction in societal costs | AY86: ='Base case'!G18 -> 6658.5795
AR87: 0 | AS87: 6658.5795 | AU87: 0 | AV87: 6658.5795 | AX87: 0 | AY87: 6658.5795
AR88: 0.05 | AS88: 6658.5795 | AU88: 1000 | AV88: 6658.5795 | AX88: 0.05 | AY88: 6658.5795
AR89: 0.1 | AS89: 6658.5795 | AU89: 2000 | AV89: 6658.5795 | AX89: 0.1 | AY89: 6658.5795
AR90: 0.15 | AS90: 6658.5795 | AU90: 3000 | AV90: 6658.5795 | AX90: 0.15 | AY90: 6658.5795
AR91: 0.2 | AS91: 6658.5795 | AU91: 4000 | AV91: 6658.5795 | AX91: 0.2 | AY91: 6658.5795
AR92: 0.25 | AS92: 6658.5795 | AU92: 5000 | AV92: 6658.5795 | AX92: 0.25 | AY92: 6658.5795
AR93: 0.3 | AS93: 6658.5795 | AU93: 6000 | AV93: 6658.5795 | AX93: 0.3 | AY93: 6658.5795
AR94: 0.35 | AS94: 6658.5795 | AU94: 7000 | AV94: 6658.5795 | AX94: 0.35 | AY94: 6658.5795
AR95: 0.4 | AS95: 6658.5795 | AU95: 8000 | AV95: 6658.5795 | AX95: 0.4 | AY95: 6658.5795
AR96: 0.45 | AS96: 6658.5795 | AU96: 9000 | AV96: 6658.5795 | AX96: 0.45 | AY96: 6658.5795
AR97: 0.5 | AS97: 6658.5795 | AU97: 10000 | AV97: 6658.5795 | AX97: 0.5 | AY97: 6658.5795
AR98: =AM37 -> 0.05 | AS98: =AS86 -> 6658.5795 | AU98: =AM39 -> 5000 | AV98: =AV86 -> 6658.5795 | AX98: =AM38 -> 0.1 | AY98: =AY86 -> 6658.5795
D113: Include?
D114: Absenteeism | E114: TRUE | F114: =IF(E114=TRUE,1,0) -> 1
D115: Productivity | E115: TRUE | F115: =IF(E115=TRUE,1,0) -> 1
D116: Staff turnover | E116: TRUE | F116: 1
D117: Health care costs | E117: FALSE | F117: 0
D118: Societal costs | E118: FALSE | F118: 0

Sheet Base case
C4: XXXXXXXXXXX
E11: Before | F11: After | G11: Cost savings
D12: Cost of absenteeism | E12: =Inputs!AM12*Inputs!AM17*Inputs!AM18*Inputs!F114 -> 25502.4 | F12: =E12*(1-Inputs!$AM$19) -> 22952.16 | G12: =E12-F12 -> 2550.24
D13: Income from productivity | E13: =Inputs!AM12*Inputs!AM22*Inputs!AM23*Inputs!F115 -> 1185660 | F13: =E13*(1+Inputs!$AM$24) -> 1186845.66 | G13: =F13-E13 -> 1185.66 | AO13: Before | AP13: After | AQ13: Difference
D14: Cost of staff turnover | E14: =Inputs!AM12*Inputs!AM27*Inputs!AM29*Inputs!F116 -> 50986.74 | F14: =E14*(1-Inputs!$AM$28) -> 42064.0605 | G14: =E14-F14 -> 8922.6795 | AN14: Cost of absenteeism | AO14: 25502.4 | AP14: 22952.16 | AQ14: -2550.24
D15: Healthcare costs | E15: =Inputs!AM12*Inputs!AM32*Inputs!AM34*Inputs!F117 -> 0 | F15: =E15*(1-Inputs!AM33) -> 0 | G15: =E15-F15 -> 0 | AN15: Income from increased productivity | AO15: 1185660 | AP15: 1197516.6 | AQ15: -11856.6
D16: Societal costs | E16: =Inputs!AM12*Inputs!AM37*Inputs!AM39*Inputs!F118 -> 0 | F16: =E16*(1-Inputs!$AM$38) -> 0 | G16: =E16-F16 -> 0 | AN16: Cost of staff turnover | AO16: 50986.10656 | AP16: 42063.53791 | AQ16: -8922.568648
D17: Intervention cost | E17: 0 | F17: =Inputs!AM12*Inputs!AM14 -> 6000 | G17: =E17-F17 -> -6000 | AN17: Healthcare costs | AO17: 0 | AP17: 0 | AQ17: 0
D18: Total | E18: =SUM(E12:E17) -> 1262149.14 | F18: =SUM(F12:F17) -> 1257861.88 | G18: =SUM(G12:G17) -> 6658.5795 | AN18: Societal costs | AO18: 0 | AP18: 0 | AQ18: 0
AN19: Intervention cost | AO19: 0 | AP19: 6000 | AQ19: 6000
AN20: Total | AO20: 1262148.507 | AP20: 1268532.298 | AQ20: -17329.40865
AW36: Live
AU37: Death | AV37: TRUE | AW37: =IF(AV37=TRUE,E38,"") -> 0
D125: Slider chart on/off switch | E125: 2
D126: 1 = on, 2= off

Sheet SA
C4: XXXXXXXXXXX
AO13: Before | AP13: After | AQ13: Difference
AN14: Cost of absenteeism | AO14: 25502.4 | AP14: 22952.16 | AQ14: -2550.24
AN15: Income from increased productivity | AO15: 1185660 | AP15: 1197516.6 | AQ15: -11856.6
AN16: Cost of staff turnover | AO16: 50986.10656 | AP16: 42063.53791 | AQ16: -8922.568648
AN17: Healthcare costs | AO17: 0 | AP17: 0 | AQ17: 0
AN18: Societal costs | AO18: 0 | AP18: 0 | AQ18: 0
AN19: Intervention cost | AO19: 0 | AP19: 6000 | AQ19: 6000
AN20: Total | AO20: 1262148.507 | AP20: 1268532.298 | AQ20: -17329.40865
AW36: Live
AU37: Death | AV37: TRUE | AW37: =IF(AV37=TRUE,E38,"") -> 0
E113: Cost of intervention per person
E114: Absenteeism
E115: Productivity
E116: Staff turnover
E117: Health care costs
E118: Other societal costs
E119: 6

Sheet SAAbs
C4: XXXXXXXXXXX
AO13: Before | AP13: After | AQ13: Difference
AN14: Cost of absenteeism | AO14: 25502.4 | AP14: 22952.16 | AQ14: -2550.24
AN15: Income from increased productivity | AO15: 1185660 | AP15: 1197516.6 | AQ15: -11856.6
AN16: Cost of staff turnover | AO16: 50986.10656 | AP16: 42063.53791 | AQ16: -8922.568648
AN17: Healthcare costs | AO17: 0 | AP17: 0 | AQ17: 0
AN18: Societal costs | AO18: 0 | AP18: 0 | AQ18: 0
AN19: Intervention cost | AO19: 0 | AP19: 6000 | AQ19: 6000
AN20: Total | AO20: 1262148.507 | AP20: 1268532.298 | AQ20: -17329.40865
AW36: Live
AU37: Death | AV37: TRUE | AW37: =IF(AV37=TRUE,E38,"") -> 0
E113: Cost of intervention per person
E114: Absenteeism
E115: Productivity
E116: Staff turnover
E117: Health care costs
E118: Other societal costs
E119: 5

Sheet SAProd
C4: XXXXXXXXXXX
AO13: Before | AP13: After | AQ13: Difference
AN14: Cost of absenteeism | AO14: 25502.4 | AP14: 22952.16 | AQ14: -2550.24
AN15: Income from increased productivity | AO15: 1185660 | AP15: 1197516.6 | AQ15: -11856.6
AN16: Cost of staff turnover | AO16: 50986.10656 | AP16: 42063.53791 | AQ16: -8922.568648
AN17: Healthcare costs | AO17: 0 | AP17: 0 | AQ17: 0
AN18: Societal costs | AO18: 0 | AP18: 0 | AQ18: 0
AN19: Intervention cost | AO19: 0 | AP19: 6000 | AQ19: 6000
AN20: Total | AO20: 1262148.507 | AP20: 1268532.298 | AQ20: -17329.40865
AW36: Live
AU37: Death | AV37: TRUE | AW37: =IF(AV37=TRUE,E38,"") -> 0
E113: Cost of intervention per person
E114: Absenteeism
E115: Productivity
E116: Staff turnover
E117: Health care costs
E118: Other societal costs
E119: 3

Sheet SATurnover
C4: XXXXXXXXXXX
AO13: Before | AP13: After | AQ13: Difference
AN14: Cost of absenteeism | AO14: 25502.4 | AP14: 22952.16 | AQ14: -2550.24
AN15: Income from increased productivity | AO15: 1185660 | AP15: 1197516.6 | AQ15: -11856.6
AN16: Cost of staff turnover | AO16: 50986.10656 | AP16: 42063.53791 | AQ16: -8922.568648
AN17: Healthcare costs | AO17: 0 | AP17: 0 | AQ17: 0
AN18: Societal costs | AO18: 0 | AP18: 0 | AQ18: 0
AN19: Intervention cost | AO19: 0 | AP19: 6000 | AQ19: 6000
AN20: Total | AO20: 1262148.507 | AP20: 1268532.298 | AQ20: -17329.40865
AW36: Live
AU37: Death | AV37: TRUE | AW37: =IF(AV37=TRUE,E38,"") -> 0
E113: Cost of intervention per person
E114: Absenteeism
E115: Productivity
E116: Staff turnover
E117: Health care costs
E118: Other societal costs
E119: 3

Sheet SAHealth
C4: XXXXXXXXXXX
AO13: Before | AP13: After | AQ13: Difference
AN14: Cost of absenteeism | AO14: 25502.4 | AP14: 22952.16 | AQ14: -2550.24
AN15: Income from increased productivity | AO15: 1185660 | AP15: 1197516.6 | AQ15: -11856.6
AN16: Cost of staff turnover | AO16: 50986.10656 | AP16: 42063.53791 | AQ16: -8922.568648
AN17: Healthcare costs | AO17: 0 | AP17: 0 | AQ17: 0
AN18: Societal costs | AO18: 0 | AP18: 0 | AQ18: 0
AN19: Intervention cost | AO19: 0 | AP19: 6000 | AQ19: 6000
AN20: Total | AO20: 1262148.507 | AP20: 1268532.298 | AQ20: -17329.40865
AW36: Live
AU37: Death | AV37: TRUE | AW37: =IF(AV37=TRUE,E38,"") -> 0
E113: Cost of intervention per person
E114: Absenteeism
E115: Productivity
E116: Staff turnover
E117: Health care costs
E118: Other societal costs
E119: 1

Sheet SASoc
C4: XXXXXXXXXXX
AO13: Before | AP13: After | AQ13: Difference
AN14: Cost of absenteeism | AO14: 25502.4 | AP14: 22952.16 | AQ14: -2550.24
AN15: Income from increased productivity | AO15: 1185660 | AP15: 1197516.6 | AQ15: -11856.6
AN16: Cost of staff turnover | AO16: 50986.10656 | AP16: 42063.53791 | AQ16: -8922.568648
AN17: Healthcare costs | AO17: 0 | AP17: 0 | AQ17: 0
AN18: Societal costs | AO18: 0 | AP18: 0 | AQ18: 0
AN19: Intervention cost | AO19: 0 | AP19: 6000 | AQ19: 6000
AN20: Total | AO20: 1262148.507 | AP20: 1268532.298 | AQ20: -17329.40865
AW36: Live
AU37: Death | AV37: TRUE | AW37: =IF(AV37=TRUE,E38,"") -> 0
E113: Cost of intervention per person
E114: Absenteeism
E115: Productivity
E116: Staff turnover
E117: Health care costs
E118: Other societal costs
E119: 2

Sheet Slider
C4: XXXXXXXXXXX
E11: Before | F11: After | G11: Cost savings
D12: Cost of absenteeism | E12: ='Base case'!E12 -> 25502.4 | F12: ='Base case'!F12 -> 22952.16 | G12: ='Base case'!G12 -> 2550.24
D13: Income from productivity | E13: ='Base case'!E13 -> 1185660 | F13: ='Base case'!F13 -> 1186845.66 | G13: ='Base case'!G13 -> 1185.66 | AO13: Before | AP13: After | AQ13: Difference
D14: Cost of staff turnover | E14: ='Base case'!E14 -> 50986.74 | F14: ='Base case'!F14 -> 42064.0605 | G14: ='Base case'!G14 -> 8922.6795 | AN14: Cost of absenteeism | AO14: 25502.4 | AP14: 22952.16 | AQ14: -2550.24
D15: Healthcare costs | E15: ='Base case'!E15 -> 0 | F15: ='Base case'!F15 -> 0 | G15: ='Base case'!G15 -> 0 | AN15: Income from increased productivity | AO15: 1185660 | AP15: 1197516.6 | AQ15: -11856.6
D16: Societal costs | E16: ='Base case'!E16 -> 0 | F16: ='Base case'!F16 -> 0 | G16: ='Base case'!G16 -> 0 | AN16: Cost of staff turnover | AO16: 50986.10656 | AP16: 42063.53791 | AQ16: -8922.568648
D17: Intervention cost | E17: ='Base case'!E17 -> 0 | F17: ='Base case'!F17 -> 6000 | G17: ='Base case'!G17 -> -6000 | AN17: Healthcare costs | AO17: 0 | AP17: 0 | AQ17: 0
D18: Total | E18: ='Base case'!E18 -> 1262149.14 | F18: ='Base case'!F18 -> 1257861.88 | G18: ='Base case'!G18 -> 6658.5795 | AN18: Societal costs | AO18: 0 | AP18: 0 | AQ18: 0
AN19: Intervention cost | AO19: 0 | AP19: 6000 | AQ19: 6000
D20: Variable | F20: Value | AN20: Total | AO20: 1262148.507 | AP20: 1268532.298 | AQ20: -17329.40865
D21: Number of employees | F21: =Inputs!AM12 -> 30
D22: Cost of intervention | F22: =Inputs!AN14 -> 200
D23: Absenteeism: No. of days lost per person | F23: =Inputs!AN17 -> 7.084
D24: Absenteeism: Cost per day | F24: =Inputs!AN18 -> 120
D25: Absenteeism: Reduction | F25: =Inputs!AN19/100 -> 0.1
D26: Productivity: % of staff affected | F26: =Inputs!AN22/100 -> 1
D27: Productivity: Value of an employee | F27: =Inputs!AN23*100 -> 39522
D28: Productivity: Increase | F28: =Inputs!AN24/1000 -> 0.0001
D29: Staff turnover: Annual rate | F29: =Inputs!AN27/100 -> 0.119
D30: Staff turnover: Cost per case | F30: =Inputs!AN29 -> 14282
D31: Staff turnover: Reduction | F31: =Inputs!AN28/100 -> 0.175
D32: Health care costs: % of staff affected | F32: =Inputs!AN32/100 -> 0.22
D33: Health care costs: Cost per person | F33: =Inputs!AN34 -> 840.97
D34: Health care costs: Reduction | F34: =Inputs!AN33/100 -> 0.5
D35: Societal costs: % of staff affected | F35: =Inputs!AN37/100 -> 0.05
D36: Societal costs: Cost per person | F36: =Inputs!AN39 -> 5000
D37: Societal costs: Reduction | F37: =Inputs!AN38/100 -> 0.1 | AW37: Live
AU38: Death | AV38: TRUE | AW38: =IF(AV38=TRUE,E39,"") -> 0

Sheet Sheet1
